bitfinex/quotes_BTCUSD_20240629
["timestamp","ask_amount","ask_price","bid_price","bid_amount"]
[1719669646352,1.227592,61230.0,61229.0,0.39872305]
[1719669646555,0.232838,61230.0,61229.0,0.39872305]
[1719669646729,0.2,61244.0,61236.0,0.2]
[1719669646968,0.1,61254.0,61234.0,0.2]
[1719669646969,0.0764,61237.0,61234.0,0.2]
[1719669647141,1.226728,61236.0,61234.0,0.2]
[1719669647878,1.077784,61236.0,61235.0,0.2]
[1719669648171,1.474184,61236.0,61235.0,0.2]
[1719669648285,0.859703,61236.0,61235.0,0.2]
[1719669648491,0.818324,61236.0,61229.0,0.37723671]
[1719669648700,0.510604,61235.0,61234.0,0.19993325]
[1719669648902,0.2,61250.0,61237.0,0.2]
[1719669649108,0.0764,61238.0,61236.0,0.2]
[1719669649336,1.216805,61237.0,61235.0,0.1622]
[1719669649535,1.216805,61237.0,61235.0,0.3622]
[1719669649732,0.014,61236.0,61235.0,0.3622]
[1719669650202,1.015674,61236.0,61235.0,0.3622]
[1719669650385,0.0764,61238.0,61235.0,0.1622]
[1719669650528,1.230805,61237.0,61235.0,0.1622]
[1719669650778,1.663844,61236.0,61235.0,0.001]
[1719669651773,1.663844,61236.0,61234.0,0.19993325]
[1719669652032,0.0764,61235.0,61234.0,0.19993325]
[1719669652446,2.165367,61235.0,61234.0,0.19993325]
[1719669653321,1.495366,61235.0,61234.0,0.19993325]
[1719669653526,1.495366,61235.0,61234.0,0.211642]
[1719669654321,1.495366,61235.0,61234.0,0.01170875]
[1719669654322,1.506366,61235.0,61234.0,0.01170875]
[1719669654524,1.515366,61235.0,61234.0,0.001]
[1719669654722,1.515366,61235.0,61234.0,0.01270875]
[1719669656836,1.515366,61235.0,61234.0,0.212642]
[1719669659027,1.515366,61235.0,61234.0,0.01270875]
[1719669666021,1.438966,61235.0,61234.0,0.01270875]
[1719669666218,1.515366,61235.0,61234.0,0.01270875]
[1719669666429,0.0964,61235.0,61234.0,0.01270875]
[1719669666581,2.869642,61235.0,61234.0,0.01270875]
[1719669667090,2.869642,61235.0,61234.0,0.001]
[1719669667706,1.380795,61235.0,61234.0,0.001]
[1719669667913,1.086177,61235.0,61234.0,0.001]
[1719669668111,1.086177,61235.0,61234.0,0.01270875]
[1719669668834,1.011424,61235.0,61234.0,0.1632]
[1719669669033,1.011424,61235.0,61234.0,0.17490875]
[1719669669436,0.654911,61235.0,61234.0,0.17490875]
[1719669669787,0.506211,61235.0,61234.0,0.38510875]
[1719669672689,0.429811,61235.0,61234.0,0.38510875]
[1719669672945,0.506211,61235.0,61234.0,0.17490875]
[1719669674008,0.506211,61235.0,61234.0,0.37490875]
[1719669674194,0.506211,61235.0,61234.0,0.17490875]
[1719669674802,0.506211,61235.0,61234.0,0.01270875]
[1719669679655,0.509711,61235.0,61234.0,0.0126381]
[1719669680059,0.509711,61235.0,61234.0,0.00092935]
[1719669683591,0.506211,61235.0,61234.0,0.00092935]
[1719669684069,0.506211,61235.0,61234.0,0.0126381]
[1719669684271,0.506211,61235.0,61234.0,0.00092935]
[1719669684479,0.506211,61235.0,61234.0,0.0126381]
[1719669684618,0.506211,61235.0,61234.0,0.00092935]
[1719669684824,0.506211,61235.0,61234.0,0.0126381]
[1719669685023,0.506211,61235.0,61234.0,0.00092935]
[1719669685224,0.506211,61235.0,61234.0,0.0126381]
[1719669685437,0.429811,61235.0,61234.0,0.00092935]
[1719669685645,0.506211,61235.0,61234.0,0.0126381]
[1719669685875,0.506211,61235.0,61234.0,0.00092935]
[1719669686111,3.105806,61235.0,61234.0,0.0126381]
[1719669686385,2.993673,61235.0,61234.0,0.00092935]
[1719669686689,2.133162,61235.0,61234.0,0.00092935]
[1719669687232,2.057282,61235.0,61234.0,0.00092935]
[1719669687443,2.02054,61235.0,61234.0,0.00092935]
[1719669688095,2.02404,61235.0,61234.0,0.00092935]
[1719669688909,2.34871269,61235.0,61234.0,0.00092935]
[1719669689475,2.34871269,61235.0,61226.0,0.1]
[1719669689476,0.0035,61234.0,61223.0,0.4675]
[1719669689684,0.0035,61234.0,61217.0,1.05393325]
[1719669689685,0.0764,61224.0,61217.0,0.27433325]
[1719669689906,0.0035,61225.0,61217.0,0.27433325]
[1719669689907,0.0764,61218.0,61217.0,0.27433325]
[1719669690460,0.0764,61218.0,61217.0,0.19993325]
[1719669690663,0.408715,61218.0,61217.0,0.19993325]
[1719669690838,1.811413,61218.0,61217.0,0.19993325]
[1719669691039,1.811413,61218.0,61211.0,0.2]
[1719669691040,1.852067,61218.0,61211.0,0.2]
[1719669691240,0.0764,61212.0,61211.0,0.2]
[1719669691441,0.888854,61212.0,61210.0,0.20085725]
[1719669691643,0.612727,61211.0,61210.0,0.40085725]
[1719669692252,0.612727,61211.0,61210.0,0.20085725]
[1719669692620,0.612727,61211.0,61210.0,0.30085725]
[1719669692802,0.689127,61211.0,61210.0,0.1004654]
[1719669693723,0.689127,61211.0,61210.0,0.0004654]
[1719669694293,0.690127,61211.0,61210.0,0.0064654]
[1719669698937,0.690127,61211.0,61210.0,0.2064654]
[1719669699111,0.690127,61211.0,61210.0,0.3064654]
[1719669699515,1.269453,61211.0,61210.0,0.3064654]
[1719669701994,1.269453,61211.0,61210.0,0.1064654]
[1719669702369,1.3963983,61211.0,61210.0,0.0064654]
[1719669703746,1.4033983,61211.0,61210.0,0.0064654]
[1719669704527,1.275453,61211.0,61210.0,0.0004654]
[1719669704733,1.275453,61211.0,61210.0,0.01246687]
[1719669704942,1.279453,61211.0,61210.0,0.01246687]
[1719669705717,1.272453,61211.0,61210.0,0.01246687]
[1719669706121,1.296453,61211.0,61210.0,0.01346687]
[1719669708452,1.296453,61211.0,61210.0,0.01340419]
[1719669710415,0.1044,61211.0,61210.0,0.01340419]
[1719669711225,2.859401,61211.0,61210.0,0.01340419]
[1719669711451,0.1044,61211.0,61210.0,0.01340419]
[1719669711647,2.859401,61211.0,61210.0,0.00140272]
[1719669711847,2.859401,61211.0,61210.0,0.01340419]
[1719669712107,2.859401,61211.0,61210.0,0.00140272]
[1719669715080,2.57852209,61211.0,61210.0,0.00140272]
[1719669715303,0.0764,61211.0,61210.0,0.00140272]
[1719669715446,3.006016,61211.0,61210.0,0.01368086]
[1719669715665,2.739102,61211.0,61210.0,0.01368086]
[1719669715859,2.739102,61211.0,61210.0,0.00140272]
[1719669725987,2.90144098,61211.0,61209.0,0.00074138]
[1719669726188,4.77768698,61210.0,61206.0,0.009218]
[1719669726419,0.0764,61207.0,61206.0,0.009218]
[1719669726640,0.23873898,61207.0,61206.0,0.009218]
[1719669726854,4.85408698,61207.0,61206.0,0.009218]
[1719669727062,5.01642069,61207.0,61206.0,0.009218]
[1719669727486,4.85408698,61207.0,61206.0,0.009218]
[1719669728911,4.86708698,61207.0,61206.0,0.010218]
[1719669729519,4.86708698,61207.0,61206.0,0.011218]
[1719669729520,4.88108698,61207.0,61206.0,0.011218]
[1719669732166,3.89413598,61207.0,61206.0,0.011218]
[1719669732852,3.89413598,61207.0,61200.0,0.009229]
[1719669733114,0.0764,61201.0,61200.0,0.009229]
[1719669733274,4.691748,61201.0,61200.0,0.009229]
[1719669733901,4.691748,61201.0,61194.0,0.18130346]
[1719669734103,4.615348,61200.0,61194.0,0.08130346]
[1719669734311,0.0764,61195.0,61193.0,0.1]
[1719669734514,4.615348,61194.0,61193.0,0.1]
[1719669735146,4.615348,61194.0,61193.0,0.18130346]
[1719669736350,4.622348,61194.0,61193.0,0.18230346]
[1719669736550,4.626348,61194.0,61193.0,0.18230346]
[1719669736774,4.78868171,61194.0,61193.0,0.18230346]
[1719669736999,4.626348,61194.0,61193.0,0.18230346]
[1719669738861,4.626348,61194.0,61193.0,0.101]
[1719669741058,4.626348,61194.0,61193.0,0.2716]
[1719669742983,4.626348,61194.0,61193.0,0.1716]
[1719669744445,4.626348,61194.0,61190.0,0.179829]
[1719669744599,0.0764,61191.0,61190.0,0.179829]
[1719669744801,4.691748,61191.0,61190.0,0.179829]
[1719669745181,4.091336,61191.0,61190.0,0.179829]
[1719669745590,3.036322,61191.0,61190.0,0.179829]
[1719669745785,1.889329,61191.0,61190.0,0.379829]
[1719669746036,1.889329,61191.0,61190.0,0.19228176]
[1719669746037,1.428082,61191.0,61190.0,0.19228176]
[1719669746239,1.292845,61191.0,61190.0,0.40248176]
[1719669747244,0.0784,61191.0,61190.0,0.40348176]
[1719669747676,2.384857,61191.0,61190.0,0.40348176]
[1719669747878,2.147554,61191.0,61190.0,0.40348176]
[1719669750290,2.147554,61191.0,61190.0,0.39328176]
[1719669750496,2.30988771,61191.0,61185.0,0.1673]
[1719669750696,0.24073371,61191.0,61190.0,0.01051209]
[1719669750900,4.615348,61190.0,61186.0,0.2]
[1719669751075,0.0764,61187.0,61186.0,0.2]
[1719669751279,4.494155,61187.0,61186.0,0.2]
[1719669751484,4.691748,61187.0,61186.0,0.2]
[1719669751679,0.0764,61187.0,61186.0,0.2]
[1719669752105,0.0764,61187.0,61185.0,0.3673]
[1719669752106,0.23873371,61187.0,61185.0,0.3673]
[1719669752305,3.573489,61186.0,61185.0,0.3673]
[1719669752463,2.640608,61186.0,61185.0,0.3673]
[1719669752662,2.569496,61186.0,61185.0,0.3673]
[1719669753286,2.569496,61186.0,61185.0,0.3775]
[1719669755244,2.569496,61186.0,61185.0,0.3673]
[1719669755447,2.569496,61186.0,61185.0,0.2]
[1719669755853,2.574496,61186.0,61185.0,0.2]
[1719669756383,2.574496,61186.0,61183.0,0.2]
[1719669756607,2.574496,61186.0,61185.0,0.2]
[1719669756608,0.005,61186.0,61185.0,0.2]
[1719669756813,0.0814,61186.0,61185.0,0.21055576]
[1719669757015,4.437961,61186.0,61185.0,0.21055576]
[1719669757319,4.46346271,61186.0,61185.0,0.2]
[1719669757686,4.46846271,61186.0,61185.0,0.2]
[1719669758137,4.46846271,61186.0,61184.0,0.2]
[1719669758252,4.415655,61185.0,61183.0,0.2]
[1719669758453,4.129774,61185.0,61184.0,0.2]
[1719669758673,4.206749,61185.0,61184.0,0.2]
[1719669758968,3.88142,61185.0,61184.0,0.2]
[1719669759188,3.450594,61185.0,61184.0,0.2]
[1719669759387,3.438892,61185.0,61184.0,0.2]
[1719669760135,3.490292,61185.0,61184.0,0.2]
[1719669761852,3.496292,61185.0,61183.0,0.2]
[1719669762063,2.549009,61184.0,61183.0,0.2]
[1719669762237,2.549009,61184.0,61183.0,0.3]
[1719669762446,2.549009,61184.0,61183.0,0.31057323]
[1719669762979,2.549009,61184.0,61183.0,0.11057323]
[1719669763326,2.71134271,61184.0,61181.0,0.009229]
[1719669763665,2.71134271,61184.0,61177.0,0.209229]
[1719669763666,0.0764,61182.0,61177.0,0.209229]
[1719669763995,0.0764,61178.0,61177.0,0.209229]
[1719669764642,4.311987,61178.0,61177.0,0.009229]
[1719669765227,2.594357,61178.0,61177.0,0.219429]
[1719669765581,0.545294,61178.0,61177.0,0.39782142]
[1719669765787,0.545294,61178.0,61177.0,0.39882142]
[1719669768174,0.545294,61178.0,61177.0,0.18762142]
[1719669768374,0.545294,61178.0,61177.0,0.18862142]
[1719669768577,0.547294,61178.0,61177.0,0.18862142]
[1719669770663,0.0784,61178.0,61177.0,0.18862142]
[1719669771077,0.0784,61178.0,61177.0,0.39882142]
[1719669771889,1.47289,61178.0,61177.0,0.39882142]
[1719669776289,1.308455,61178.0,61177.0,0.39882142]
[1719669778764,1.308455,61178.0,61177.0,0.38858063]
[1719669778942,1.308455,61178.0,61177.0,0.39878063]
[1719669779839,1.308455,61178.0,61177.0,0.38858063]
[1719669780003,1.308455,61178.0,61177.0,0.39878063]
[1719669780590,1.308455,61178.0,61177.0,0.38858063]
[1719669780796,1.308455,61178.0,61177.0,0.39878063]
[1719669781196,1.308455,61178.0,61177.0,0.18858063]
[1719669781656,0.0784,61178.0,61177.0,0.18858063]
[1719669782267,0.0784,61178.0,61177.0,0.39878063]
[1719669782586,0.0784,61178.0,61177.0,0.69871388]
[1719669783608,0.0764,61178.0,61177.0,0.69871388]
[1719669784213,0.0764,61178.0,61177.0,0.69771388]
[1719669784581,0.0774,61178.0,61177.0,0.69971388]
[1719669785751,0.0774,61178.0,61177.0,0.70971388]
[1719669785961,0.0774,61178.0,61177.0,0.48951388]
[1719669787839,0.0774,61178.0,61177.0,0.70971388]
[1719669788691,0.0774,61178.0,61177.0,0.48951388]
[1719669789314,0.0774,61178.0,61177.0,0.70971388]
[1719669789489,0.0774,61178.0,61177.0,0.71787388]
[1719669792529,0.07824,61178.0,61177.0,0.71787388]
[1719669794807,0.07824,61178.0,61177.0,0.49767388]
[1719669795091,0.00184,61178.0,61177.0,0.93903349]
[1719669795301,0.00184,61178.0,61177.0,0.88021286]
[1719669796150,0.07824,61178.0,61177.0,0.88021286]
[1719669796358,0.07724,61178.0,61177.0,0.87821286]
[1719669796669,0.07824,61178.0,61177.0,0.88021286]
[1719669797744,0.07924,61178.0,61177.0,0.88321286]
[1719669798917,0.07724,61178.0,61177.0,0.87821286]
[1719669799345,0.07924,61178.0,61177.0,0.89821286]
[1719669799555,0.07637761,61212.0,61193.0,0.2]
[1719669799755,4.80068698,61211.0,61196.0,0.08130346]
[1719669799959,0.0764,61197.0,61196.0,0.08130346]
[1719669800156,4.205213,61197.0,61196.0,0.08130346]
[1719669800379,4.367213,61197.0,61196.0,0.09354427]
[1719669800546,3.874489,61197.0,61196.0,0.08130346]
[1719669800752,3.874489,61197.0,61194.0,0.2]
[1719669800948,0.0764,61195.0,61194.0,0.2102]
[1719669801351,0.0764,61195.0,61193.0,0.155]
[1719669801352,0.929445,61195.0,61193.0,0.155]
[1719669801550,0.698292,61194.0,61193.0,0.155]
[1719669802101,0.012,61197.0,61193.0,0.355]
[1719669802308,1.461918,61196.0,61195.0,0.2]
[1719669802509,1.538318,61196.0,61195.0,0.4102]
[1719669803251,1.680696,61196.0,61195.0,0.4102]
[1719669803458,1.615196,61196.0,61195.0,0.4102]
[1719669804477,1.625196,61196.0,61195.0,0.4102]
[1719669804691,1.632196,61196.0,61195.0,0.4112]
[1719669804869,1.625196,61196.0,61195.0,0.4102]
[1719669805069,1.615196,61196.0,61195.0,0.4102]
[1719669805274,1.615196,61196.0,61195.0,0.4142]
[1719669805432,1.615196,61196.0,61195.0,0.4112]
[1719669805633,0.477783,61196.0,61195.0,0.4112]
[1719669805848,0.479783,61196.0,61195.0,0.4102]
[1719669806264,0.477783,61196.0,61195.0,0.4102]
[1719669807072,0.479783,61196.0,61195.0,0.4102]
[1719669807422,0.483783,61196.0,61195.0,0.4102]
[1719669809621,0.483783,61196.0,61195.0,0.41877111]
[1719669809822,0.407383,61196.0,61195.0,0.41877111]
[1719669810024,0.483783,61196.0,61195.0,0.41877111]
[1719669820434,0.483783,61196.0,61195.0,0.40857111]
[1719669823106,0.483783,61196.0,61195.0,0.20857111]
[1719669823515,0.483783,61196.0,61195.0,0.41877111]
[1719669823889,0.483783,61196.0,61195.0,0.20857111]
[1719669824031,0.483783,61196.0,61195.0,0.28947111]
[1719669824528,0.483783,61196.0,61195.0,0.49967111]
[1719669825098,0.483783,61196.0,61195.0,0.56417111]
[1719669826250,0.483783,61196.0,61195.0,0.56509511]
[1719669828857,0.483783,61196.0,61195.0,0.49039511]
[1719669829062,0.483783,61196.0,61195.0,0.40949511]
[1719669832799,0.483783,61196.0,61195.0,0.20949511]
[1719669835640,0.483783,61196.0,61195.0,0.200924]
[1719669835985,0.483783,61196.0,61195.0,0.41969511]
[1719669836121,0.483783,61196.0,61195.0,0.20949511]
[1719669836715,0.483783,61196.0,61195.0,0.41969511]
[1719669837654,0.483783,61196.0,61195.0,0.40949511]
[1719669839256,0.483783,61196.0,61195.0,0.41969511]
[1719669839461,0.483783,61196.0,61195.0,0.20949511]
[1719669839925,0.483783,61196.0,61195.0,0.41969511]
[1719669841715,0.407383,61196.0,61195.0,0.20949511]
[1719669841919,0.483783,61196.0,61195.0,0.20949511]
[1719669842135,0.236131,61196.0,61195.0,0.35879511]
[1719669842343,0.0824,61196.0,61195.0,0.55872836]
[1719669842545,0.006,61196.0,61195.0,0.82106734]
[1719669842742,0.006,61196.0,61195.0,1.04555289]
[1719669842947,0.006,61196.0,61195.0,1.17010818]
[1719669843254,0.002,61196.0,61195.0,1.54250818]
[1719669843451,0.00084,61235.0,61215.0,0.0689]
[1719669843700,0.00084,61235.0,61215.0,0.2791]
[1719669843701,0.56451044,61216.0,61215.0,0.2791]
[1719669843907,0.0764,61216.0,61215.0,0.2791]
[1719669845075,0.68826,61216.0,61215.0,0.2791]
[1719669845265,0.638709,61216.0,61215.0,0.2791]
[1719669846258,0.641709,61216.0,61215.0,0.2791]
[1719669846867,0.638709,61216.0,61215.0,0.2791]
[1719669847238,0.646709,61216.0,61215.0,0.2801]
[1719669847445,0.643709,61216.0,61215.0,0.2801]
[1719669847646,0.638709,61216.0,61215.0,0.2791]
[1719669847853,0.638709,61216.0,61215.0,0.2801]
[1719669848077,0.639709,61216.0,61215.0,0.2801]
[1719669850175,0.501798,61216.0,61215.0,0.2801]
[1719669850495,0.436298,61216.0,61215.0,0.2801]
[1719669854516,0.436298,61216.0,61215.0,0.00965151]
[1719669854731,0.436298,61216.0,61215.0,0.21985151]
[1719669854888,0.444458,61216.0,61215.0,0.00965151]
[1719669855769,0.444458,61216.0,61215.0,0.21985151]
[1719669856153,0.08556,61216.0,61215.0,0.21985151]
[1719669856651,0.08556,61216.0,61215.0,0.00965151]
[1719669856871,2.179197,61216.0,61215.0,0.00965151]
[1719669857243,2.179197,61216.0,61215.0,0.20965151]
[1719669857462,2.179197,61216.0,61215.0,0.21985151]
[1719669857720,2.20939826,61216.0,61215.0,0.20965151]
[1719669857870,2.20939826,61216.0,61215.0,0.21985151]
[1719669858068,2.17339826,61216.0,61215.0,0.21985151]
[1719669858431,2.17339826,61216.0,61215.0,0.20965151]
[1719669859053,1.56485926,61216.0,61215.0,0.21985151]
[1719669859303,0.89033326,61216.0,61215.0,0.21985151]
[1719669860744,0.89117326,61216.0,61215.0,0.21985151]
[1719669860942,0.74247326,61216.0,61215.0,0.21985151]
[1719669862093,0.53137149,61216.0,61215.0,0.21985151]
[1719669862338,0.52973278,61216.0,61215.0,0.21985151]
[1719669862537,0.51254278,61216.0,61215.0,0.37135151]
[1719669862770,0.44704278,61216.0,61215.0,0.37135151]
[1719669863377,0.30692778,61216.0,61215.0,0.37135151]
[1719669863589,0.10728678,61216.0,61215.0,0.37135151]
[1719669864196,0.82487378,61216.0,61215.0,0.37135151]
[1719669864348,0.03088678,61216.0,61215.0,0.86754358]
[1719669864549,0.0764,61216.0,61215.0,0.85754358]
[1719669864966,0.19253401,61234.0,61225.0,0.01]
[1719669865166,0.0764,61226.0,61222.0,0.2]
[1719669865350,0.0764,61223.0,61222.0,0.2]
[1719669865555,0.0764,61223.0,61222.0,0.4102]
[1719669865759,0.570345,61223.0,61222.0,0.4102]
[1719669865993,0.46553,61223.0,61222.0,0.5617]
[1719669866133,0.455515,61223.0,61222.0,0.5617]
[1719669866753,0.459515,61223.0,61222.0,0.5617]
[1719669867570,0.459515,61223.0,61222.0,0.76163325]
[1719669867791,0.461515,61223.0,61222.0,0.76163325]
[1719669869367,0.461515,61223.0,61222.0,0.55143325]
[1719669869606,0.461515,61223.0,61222.0,0.77022368]
[1719669873002,0.461515,61223.0,61222.0,0.57022368]
[1719669873204,0.461515,61223.0,61222.0,0.77022368]
[1719669877618,0.461515,61223.0,61222.0,0.76976517]
[1719669878223,0.461515,61223.0,61222.0,0.75956517]
[1719669878375,0.461515,61223.0,61222.0,0.76976517]
[1719669878577,0.49132308,61223.0,61222.0,0.76976517]
[1719669879030,0.49132308,61223.0,61222.0,0.75956517]
[1719669883001,1.71730908,61223.0,61222.0,0.75956517]
[1719669883206,1.71730908,61223.0,61222.0,0.75097474]
[1719669883406,1.71730908,61223.0,61222.0,0.75956517]
[1719669885077,0.71893708,61223.0,61222.0,0.55956517]
[1719669887777,0.43183708,61223.0,61222.0,0.55956517]
[1719669887991,0.43183708,61223.0,61222.0,0.76117474]
[1719669888194,0.43183708,61223.0,61222.0,0.76976517]
[1719669889555,0.43183708,61223.0,61222.0,0.56976517]
[1719669889764,0.43183708,61223.0,61222.0,0.76976517]
[1719669894837,0.43267708,61223.0,61222.0,0.76976517]
[1719669895041,0.43267708,61223.0,61222.0,0.76117474]
[1719669895255,0.43267708,61223.0,61222.0,0.77016305]
[1719669899412,0.11304808,61223.0,61222.0,0.77016305]
[1719669900307,0.03664808,61223.0,61222.0,0.85817935]
[1719669900657,0.11304808,61223.0,61222.0,0.95817935]
[1719669901066,0.11304808,61223.0,61222.0,1.12051833]
[1719669901281,0.11104808,61223.0,61222.0,1.12051833]
[1719669901689,0.03464808,61223.0,61222.0,1.12551833]
[1719669901841,0.03464808,61223.0,61222.0,0.90031833]
[1719669902044,0.10704808,61223.0,61222.0,1.04250203]
[1719669902245,0.07724,61223.0,61222.0,1.03250203]
[1719669902445,0.07724,61223.0,61222.0,1.03850203]
[1719669902446,0.07824,61223.0,61222.0,1.03850203]
[1719669903047,0.07824,61223.0,61222.0,1.04850203]
[1719669903250,0.07824,61223.0,61222.0,1.03850203]
[1719669903413,0.07824,61223.0,61222.0,1.04750203]
[1719669903613,0.07824,61223.0,61222.0,1.03850203]
[1719669904553,0.07824,61223.0,61222.0,1.04750203]
[1719669911070,0.300456,61223.0,61222.0,0.88516305]
[1719669911276,1.059524,61223.0,61222.0,0.88516305]
[1719669914417,0.55467,61223.0,61222.0,0.88516305]
[1719669914616,0.22724,61223.0,61222.0,0.67496305]
[1719669915021,0.15084,61223.0,61222.0,0.74245936]
[1719669915187,0.22724,61223.0,61222.0,0.74245936]
[1719669915433,0.07824,61223.0,61222.0,0.74245936]
[1719669915634,0.07824,61223.0,61222.0,0.89516305]
[1719669915839,0.00184,61223.0,61222.0,0.89516305]
[1719669916036,0.07824,61223.0,61222.0,0.89516305]
[1719669916338,0.03240187,61256.0,61232.0,0.21]
[1719669916540,0.48811044,61236.0,61233.0,0.021]
[1719669916748,0.0764,61233.0,61232.0,0.21]
[1719669916947,1.164335,61233.0,61232.0,0.21]
[1719669917223,0.0764,61233.0,61232.0,0.21]
[1719669917405,1.164335,61233.0,61232.0,0.21]
[1719669917598,0.0764,61233.0,61232.0,0.21]
[1719669917798,1.164335,61233.0,61232.0,0.21]
[1719669918351,1.164335,61233.0,61232.0,0.211]
[1719669918560,1.098835,61233.0,61232.0,0.211]
[1719669918827,1.098835,61233.0,61232.0,0.4112]
[1719669918979,1.098835,61233.0,61232.0,0.4102]
[1719669919180,1.098835,61233.0,61232.0,0.4112]
[1719669919381,1.104835,61233.0,61232.0,0.4112]
[1719669919936,1.072463,61233.0,61232.0,0.4112]
[1719669920139,1.076463,61233.0,61232.0,0.4112]
[1719669920567,0.453001,61233.0,61232.0,0.61113325]
[1719669920767,0.328054,61233.0,61232.0,0.61113325]
[1719669921598,0.251654,61233.0,61232.0,0.61113325]
[1719669921766,0.328054,61233.0,61232.0,0.61113325]
[1719669922469,0.328054,61233.0,61232.0,0.41113325]
[1719669922670,0.328054,61233.0,61232.0,0.61113325]
[1719669924201,0.328054,61233.0,61232.0,0.61132984]
[1719669926265,0.0864,61233.0,61232.0,0.61132984]
[1719669926935,0.798128,61233.0,61232.0,0.61132984]
[1719669927597,0.732628,61233.0,61232.0,0.61132984]
[1719669927795,0.732628,61233.0,61232.0,0.61225384]
[1719669928214,0.583928,61233.0,61232.0,0.61225384]
[1719669929402,0.583928,61233.0,61232.0,0.40205384]
[1719669929577,0.583928,61233.0,61232.0,0.41089104]
[1719669930184,0.518054,61233.0,61232.0,0.48909104]
[1719669931834,0.518054,61233.0,61232.0,0.48678215]
[1719669932171,0.518054,61233.0,61232.0,0.69698215]
[1719669934928,0.518054,61233.0,61232.0,0.49698215]
[1719669935146,0.518054,61233.0,61232.0,0.69698215]
[1719669937305,0.0864,61233.0,61232.0,0.69698215]
[1719669938128,1.069402,61233.0,61232.0,0.69698215]
[1719669939351,0.998188,61233.0,61232.0,0.69698215]
[1719669940732,0.998188,61233.0,61232.0,0.49698215]
[1719669940941,0.998188,61233.0,61232.0,0.69698215]
[1719669941703,0.957287,61233.0,61232.0,0.69698215]
[1719669941904,0.895017,61233.0,61232.0,0.69698215]
[1719669944513,0.895017,61233.0,61232.0,0.69568382]
[1719669945061,0.746317,61233.0,61232.0,0.69568382]
[1719669945256,0.746317,61233.0,61232.0,0.49568382]
[1719669945468,0.746317,61233.0,61232.0,0.69568382]
[1719669946437,0.611797,61233.0,61232.0,0.69568382]
[1719669947285,0.390217,61233.0,61232.0,0.69568382]
[1719669947489,0.362367,61233.0,61232.0,0.69568382]
[1719669948438,0.362367,61233.0,61232.0,0.75978382]
[1719669949294,0.0864,61233.0,61232.0,0.75978382]
[1719669950216,0.0804,61233.0,61232.0,0.75978382]
[1719669951384,0.0764,61233.0,61232.0,0.75978382]
[1719669951924,0.0834,61233.0,61232.0,0.76578382]
[1719669952260,0.0764,61233.0,61232.0,0.76478382]
[1719669952810,0.306098,61233.0,61232.0,0.76678382]
[1719669953733,0.00042896,61251.0,61241.0,0.2]
[1719669953910,0.0764,61242.0,61241.0,0.2]
[1719669954698,1.623249,61242.0,61241.0,0.2]
[1719669955509,0.662319,61242.0,61241.0,0.352]
[1719669955723,4.444448,61255.0,61245.0,0.2]
[1719669955926,0.0764,61246.0,61245.0,0.2]
[1719669956088,1.933359,61246.0,61245.0,0.2]
[1719669956690,1.933359,61246.0,61245.0,0.2102]
[1719669956691,1.856959,61246.0,61245.0,0.2102]
[1719669956895,1.257398,61246.0,61245.0,0.2]
[1719669957324,1.257398,61246.0,61244.0,0.2]
[1719669957528,1.990629,61245.0,61244.0,0.2]
[1719669958387,1.990629,61245.0,61242.0,0.19957104]
[1719669958560,0.0904,61246.0,61242.0,0.19957104]
[1719669958561,0.0764,61243.0,61242.0,0.19957104]
[1719669958968,1.521095,61243.0,61242.0,0.19957104]
[1719669959165,2.238654,61243.0,61242.0,0.19957104]
[1719669959590,2.238654,61243.0,61242.0,0.20613877]
[1719669959966,2.242654,61243.0,61242.0,0.20713877]
[1719669960189,2.242654,61243.0,61242.0,0.20668041]
[1719669960431,2.251654,61243.0,61242.0,0.20111268]
[1719669960913,2.251654,61243.0,61242.0,0.002]
[1719669960914,1.9966849,61243.0,61242.0,0.002]
[1719669961064,2.0730849,61243.0,61242.0,0.00802042]
[1719669961263,2.0730849,61243.0,61242.0,0.002]
[1719669967144,2.0730849,61243.0,61242.0,0.00802042]
[1719669967465,2.0730849,61243.0,61242.0,0.002]
[1719669967868,2.0730849,61243.0,61242.0,0.00802042]
[1719669969717,0.0894,61243.0,61242.0,0.00802042]
[1719669970266,3.954011,61243.0,61242.0,0.002]
[1719669970468,0.0894,61243.0,61242.0,0.002]
[1719669970707,3.918011,61243.0,61242.0,0.002]
[1719669973255,3.918011,61243.0,61242.0,0.202]
[1719669973694,3.809053,61243.0,61242.0,0.202]
[1719669974285,2.086547,61243.0,61242.0,0.202]
[1719669974487,1.992193,61243.0,61242.0,0.202]
[1719669975156,1.992193,61243.0,61242.0,0.20802042]
[1719669975570,1.99211624,61243.0,61242.0,0.20802042]
[1719669976149,1.99211624,61243.0,61242.0,0.21618042]
[1719669979532,1.99211624,61243.0,61242.0,0.21016]
[1719669979967,1.99211624,61243.0,61242.0,0.21618042]
[1719669980736,2.65044324,61243.0,61242.0,0.21618042]
[1719669980850,2.79773824,61243.0,61242.0,0.21618042]
[1719669981060,0.08932324,61243.0,61242.0,0.21618042]
[1719669981292,0.08932324,61243.0,61242.0,0.21016]
[1719669981486,2.79773824,61243.0,61242.0,0.21016]
[1719669981721,0.08932324,61243.0,61242.0,0.21016]
[1719669982298,2.79470224,61243.0,61242.0,0.21016]
[1719669982640,2.72790824,61243.0,61242.0,0.21016]
[1719669984846,2.72790824,61243.0,61242.0,0.21618042]
[1719669988529,2.72790824,61243.0,61242.0,0.21016]
[1719669989361,3.05258093,61243.0,61233.0,0.2]
[1719669989613,0.0764,61234.0,61232.0,0.20112059]
[1719669989760,0.0764,61234.0,61233.0,0.2]
[1719669989967,0.0764,61234.0,61233.0,0.2060406]
[1719669990170,0.0764,61234.0,61233.0,0.20773519]
[1719669990367,0.0764,61234.0,61233.0,0.2]
[1719669990590,0.0764,61234.0,61233.0,0.201]
[1719669990797,3.573067,61234.0,61233.0,0.202]
[1719669991064,0.0764,61234.0,61233.0,0.201]